bitfinex/quotes_BTCUSD_20251205
["timestamp","ask_amount","ask_price","bid_price","bid_amount"]
[1764948365860,0.00431522,91150.0,91149.0,0.28134493]
[1764948366112,0.00431522,91150.0,91149.0,0.0109]
[1764948366471,0.00431522,91150.0,91144.0,0.01097164]
[1764948366472,0.01097345,91129.0,91122.0,0.03287828]
[1764948366700,0.23044296,91129.0,91124.0,0.23045477]
[1764948366912,0.23044296,91129.0,91123.0,0.01756]
[1764948366913,0.01097357,91128.0,91123.0,0.24801707]
[1764948367116,0.21947412,91127.0,91123.0,0.01097417]
[1764948367366,0.01097321,91131.0,91111.0,0.03294554]
[1764948367367,0.01097261,91136.0,91132.0,0.01097309]
[1764948367585,0.01097201,91141.0,91133.0,0.01097297]
[1764948367586,0.23042232,91137.0,91133.0,0.01097297]
[1764948367784,0.23042232,91137.0,91124.0,0.23703965]
[1764948367785,0.22173401,91150.0,91145.0,0.01097152]
[1764948368021,0.01097104,91149.0,91145.0,0.01097152]
[1764948368223,0.21945173,91137.0,91132.0,0.01097309]
[1764948368340,0.02782,91139.0,91135.0,0.01097273]
[1764948368562,0.21945332,91136.0,91133.0,0.23043208]
[1764948368765,0.00161287,91139.0,91136.0,0.01097261]
[1764948368975,0.00161287,91139.0,91137.0,0.02190399]
[1764948369172,0.21945076,91137.0,91136.0,0.02190399]
[1764948369372,0.21945257,91136.0,91133.0,0.22045887]
[1764948369634,0.26094993,91134.0,91133.0,0.001]
[1764948370046,0.26094993,91134.0,91121.0,0.01756]
[1764948370047,0.2194766,91126.0,91123.0,0.23045746]
[1764948370196,0.23045077,91126.0,91123.0,0.01097417]
[1764948370385,0.23045077,91126.0,91121.0,0.01756]
[1764948370386,0.21948596,91122.0,91121.0,0.01756]
[1764948370896,0.0109749,91117.0,91114.0,0.02190399]
[1764948371152,0.01097453,91120.0,91117.0,0.0109749]
[1764948371327,0.01097429,91122.0,91117.0,0.0109749]
[1764948371530,0.23046039,91122.0,91117.0,0.0109749]
[1764948371732,0.01097345,91129.0,91121.0,0.005]
[1764948372062,0.23045266,91125.0,91121.0,0.23046249]
[1764948372271,0.05531,91132.0,91119.0,0.02190399]
[1764948372582,0.01097357,91128.0,91125.0,0.01097393]
[1764948372904,0.21947431,91127.0,91124.0,0.01097405]
[1764948373110,0.001,91129.0,91128.0,0.21947151]
[1764948373320,0.001,91129.0,91128.0,0.2704955]
[1764948374164,0.21944236,91141.0,91137.0,0.21944929]
[1764948374341,0.23039198,91149.0,91146.0,0.21942778]
[1764948374545,0.01316668,91150.0,91147.0,0.01097128]
[1764948374939,0.00231522,91150.0,91149.0,0.21942094]
[1764948375326,0.00231522,91150.0,91148.0,0.21942097]
[1764948375527,0.00231522,91150.0,91149.0,0.24132493]
[1764948375874,0.00231522,91150.0,91149.0,0.21942094]
[1764948376074,0.01231522,91150.0,91149.0,0.21942094]
[1764948376482,0.01231522,91150.0,91149.0,0.24132493]
[1764948376897,0.01231522,91150.0,91149.0,0.22042094]
[1764948377307,0.01231522,91150.0,91149.0,0.24232493]
[1764948377700,0.23173376,91150.0,91149.0,0.001]
[1764948377913,0.69382087,91150.0,91149.0,0.001]
[1764948378140,0.22334663,91150.0,91149.0,0.001]
[1764948378365,0.22434663,91150.0,91149.0,0.005]
[1764948378718,0.00492809,91150.0,91149.0,0.005]
[1764948378934,0.00331522,91150.0,91149.0,0.08514399]
[1764948379356,0.00231522,91150.0,91149.0,0.08114399]
[1764948379602,0.00231522,91150.0,91149.0,0.35016099]
[1764948379730,0.00331522,91150.0,91149.0,0.35116099]
[1764948380158,0.00331522,91150.0,91149.0,0.67516099]
[1764948380358,0.00331522,91150.0,91149.0,0.69162343]
[1764948380613,0.00331522,91150.0,91149.0,0.67233543]
[1764948380763,0.00331522,91150.0,91149.0,0.56195343]
[1764948380950,0.00231522,91150.0,91149.0,0.56195343]
[1764948381142,0.00231522,91150.0,91149.0,0.78137437]
[1764948381390,0.00331522,91150.0,91149.0,0.78337437]
[1764948381588,0.00331522,91150.0,91149.0,0.78137437]
[1764948381589,0.00231522,91150.0,91149.0,0.78137437]
[1764948382080,0.00331522,91150.0,91149.0,0.78637437]
[1764948382414,0.00331522,91150.0,91149.0,0.61690737]
[1764948382611,0.00331522,91150.0,91149.0,0.31146737]
[1764948382819,0.00331522,91150.0,91149.0,0.007]
[1764948383025,0.00331522,91150.0,91149.0,0.24398094]
[1764948384448,0.00331522,91150.0,91149.0,0.02456]
[1764948384644,0.31953663,91150.0,91149.0,0.007]
[1764948385208,0.26422663,91150.0,91149.0,0.007]
[1764948385363,0.00492809,91150.0,91149.0,0.007]
[1764948385767,0.00331522,91150.0,91149.0,0.27343493]
[1764948385970,0.00331522,91150.0,91149.0,0.29854493]
[1764948386622,0.00331522,91150.0,91149.0,0.62154493]
[1764948389727,0.00331522,91150.0,91149.0,0.54942094]
[1764948390148,0.00331522,91150.0,91149.0,0.62154493]
[1764948390761,0.00331522,91150.0,91149.0,0.54942094]
[1764948391114,0.00331522,91150.0,91149.0,0.25153094]
[1764948391304,0.00331522,91150.0,91149.0,0.27343493]
[1764948392448,0.00331522,91150.0,91149.0,0.007]
[1764948392662,0.31682663,91150.0,91149.0,0.007]
[1764948393086,0.42161432,91150.0,91149.0,0.007]
[1764948393508,0.42161432,91150.0,91119.0,0.02830465]
[1764948393509,0.01097417,91123.0,91119.0,0.02830465]
[1764948393711,0.01097381,91126.0,91122.0,0.02190399]
[1764948393712,0.21948114,91124.0,91122.0,0.02190399]
[1764948394143,0.23206337,91126.0,91122.0,0.02190399]
[1764948394144,0.00161287,91126.0,91124.0,0.21947885]
[1764948394321,0.00161287,91126.0,91125.0,0.05401399]
[1764948394483,0.01097321,91131.0,91130.0,0.02190399]
[1764948394883,0.21945119,91137.0,91134.0,0.2304278]
[1764948394884,0.23042248,91137.0,91134.0,0.2304278]
[1764948395082,0.21945969,91133.0,91131.0,0.02190399]
[1764948395721,0.01097285,91134.0,91133.0,0.02190399]
[1764948395942,0.01097261,91136.0,91135.0,0.02190399]
[1764948396123,0.00161287,91137.0,91136.0,0.02190399]
[1764948396500,0.2210627,91137.0,91136.0,0.02190399]
[1764948396708,0.21945988,91133.0,91132.0,0.02190399]
[1764948396913,0.21946187,91132.0,91131.0,0.004]
[1764948397658,0.23042991,91134.0,91130.0,0.03287732]
[1764948397852,0.23042991,91134.0,91130.0,0.02190399]
[1764948397853,0.21946428,91131.0,91130.0,0.02190399]
[1764948398160,0.21947397,91127.0,91124.0,0.23045466]
[1764948398357,0.21947717,91126.0,91124.0,0.01097405]
[1764948398698,0.21948355,91123.0,91121.0,0.02190399]
[1764948398904,0.23045071,91126.0,91122.0,0.21948596]
[1764948399108,0.23045071,91126.0,91121.0,0.02190399]
[1764948399345,0.21947905,91125.0,91122.0,0.21948596]
[1764948399547,0.01097381,91126.0,91123.0,0.01097417]
[1764948399746,0.22047651,91126.0,91124.0,0.003]
[1764948399948,0.21947873,91125.0,91124.0,0.003]
[1764948400503,0.25726873,91125.0,91124.0,0.003]
[1764948400641,0.31195873,91125.0,91124.0,0.02056]
[1764948400854,0.31195873,91125.0,91124.0,0.003]
[1764948401032,0.31195873,91125.0,91124.0,0.002]
[1764948401506,0.31295873,91125.0,91124.0,0.002]
[1764948402084,0.23043417,91133.0,91124.0,0.002]
[1764948402260,0.23044255,91129.0,91128.0,0.02190399]
[1764948402462,0.21947873,91125.0,91124.0,0.02390399]
[1764948403006,0.23043417,91133.0,91127.0,0.01097369]
[1764948403007,0.01097309,91132.0,91127.0,0.01097369]
[1764948403160,0.01097297,91133.0,91130.0,0.01097333]
[1764948403362,0.21945579,91135.0,91132.0,0.01097309]
[1764948403944,0.03990152,91145.0,91136.0,0.21945224]
[1764948404139,0.21943698,91143.0,91139.0,0.2194449]
[1764948404431,0.25933319,91145.0,91142.0,0.01097189]
[1764948404432,0.02893,91145.0,91142.0,0.01097189]
[1764948404731,0.0109714,91146.0,91142.0,0.23040831]
[1764948404960,0.23040466,91144.0,91140.0,0.03287612]
[1764948405089,0.22173449,91150.0,91130.0,0.01756]
[1764948405090,0.01097213,91140.0,91130.0,0.01756]
[1764948405309,0.22344983,91137.0,91136.0,0.001]
[1764948405536,0.21946187,91132.0,91131.0,0.01756]
[1764948405720,0.01097526,91114.0,91109.0,0.03287985]
[1764948405916,0.03689,91132.0,91109.0,0.03287985]
[1764948405917,0.0109749,91117.0,91111.0,0.01097562]
[1764948406165,0.23047809,91115.0,91111.0,0.01097562]
[1764948406466,0.02733,91119.0,91118.0,0.21949559]
[1764948406629,0.21947962,91125.0,91122.0,0.23045795]
[1764948406888,0.23045562,91124.0,91121.0,0.0512884]
[1764948407037,0.21948596,91122.0,91121.0,0.04031399]
[1764948407240,0.01097502,91116.0,91104.0,0.323]
[1764948407465,0.01097502,91116.0,91103.0,0.21952983]
[1764948407466,0.25640246,91111.0,91110.0,0.00011939]
[1764948407662,0.21951246,91111.0,91110.0,0.00011939]
[1764948408875,0.02733,91117.0,91114.0,0.01097526]
[1764948409086,0.02733,91117.0,91116.0,0.21950041]
[1764948409720,0.23045364,91125.0,91120.0,0.01097453]
[1764948409887,0.21947952,91125.0,91123.0,0.02190399]
[1764948410095,0.21948114,91124.0,91123.0,0.02190399]
[1764948410490,0.21947952,91125.0,91121.0,0.04031399]
[1764948410698,0.21946241,91132.0,91121.0,0.04031399]
[1764948410699,0.23043982,91131.0,91128.0,0.01097357]
[1764948411027,0.01097333,91130.0,91126.0,0.01097381]
[1764948411307,0.01097333,91130.0,91127.0,0.01097369]
[1764948411564,0.01097333,91130.0,91126.0,0.2304498]
[1764948411565,0.01097164,91144.0,91138.0,0.01097237]
[1764948411765,0.05249,91153.0,91142.0,0.01097189]
[1764948411766,0.0109714,91146.0,91142.0,0.01097189]
[1764948411971,0.2304,91146.0,91143.0,0.21943483]
[1764948412140,0.01097164,91144.0,91141.0,0.02190399]
[1764948412545,0.00161287,91146.0,91143.0,0.01097176]
[1764948412759,0.01097164,91144.0,91141.0,0.01756]
[1764948412959,0.21943559,91143.0,91141.0,0.01756]
[1764948413192,0.2194378,91142.0,91141.0,0.01756]
[1764948413551,0.2194378,91142.0,91127.0,0.002]
[1764948413552,0.21947151,91128.0,91127.0,0.002]
[1764948413753,0.21947151,91128.0,91127.0,0.01956]
[1764948413958,0.21947151,91128.0,91127.0,0.01756]
[1764948414558,0.0109714,91146.0,91135.0,0.01097273]
[1764948414758,0.23040665,91144.0,91141.0,0.02190399]
[1764948414984,0.01097164,91144.0,91140.0,0.21944023]
[1764948415227,0.01097164,91144.0,91141.0,0.2194402]
[1764948415689,0.00219576,91150.0,91141.0,0.2194402]
[1764948415914,0.00219576,91150.0,91144.0,0.01097164]
[1764948416124,0.01328614,91150.0,91146.0,0.02190399]
[1764948416328,0.00231522,91150.0,91149.0,0.21942094]
[1764948416737,0.00231522,91150.0,91149.0,0.26974493]
[1764948417488,0.00231522,91150.0,91149.0,0.31462737]
[1764948418048,0.00231522,91150.0,91149.0,0.26974493]
[1764948418275,0.00431522,91150.0,91149.0,0.27374493]
[1764948418445,0.00431522,91150.0,91149.0,0.30216493]
[1764948418650,0.00231522,91150.0,91149.0,0.26974493]
[1764948418848,0.00431522,91150.0,91149.0,0.004]
[1764948419278,0.01328614,91150.0,91147.0,0.01752]
[1764948419476,0.21942094,91149.0,91147.0,0.01752]
[1764948419705,0.21942301,91149.0,91147.0,0.01752]
[1764948420019,0.01489901,91150.0,91147.0,0.01752]
[1764948420240,0.21942139,91149.0,91147.0,0.01752]
[1764948420578,0.00592809,91150.0,91149.0,0.02790399]
[1764948420792,0.00431522,91150.0,91149.0,0.05632399]
[1764948420992,0.00231522,91150.0,91149.0,0.05032399]
[1764948421386,0.00331522,91150.0,91149.0,0.03936643]
[1764948421631,0.11853388,91150.0,91149.0,0.001]
[1764948421873,0.11853388,91150.0,91147.0,0.001]
[1764948421874,0.21948691,91122.0,91114.0,0.01097526]
[1764948422102,0.06252299,91147.0,91103.0,0.18830762]
[1764948422103,0.21947483,91127.0,91119.0,0.01097465]
[1764948422332,0.21947483,91127.0,91115.0,0.01752]
[1764948422333,0.01097429,91122.0,91115.0,0.02849514]
[1764948422557,0.0269,91116.0,91115.0,0.01752]
[1764948423010,0.21950282,91115.0,91114.0,0.001]
[1764948423217,0.30864282,91115.0,91114.0,0.001]
[1764948424050,0.41353297,91115.0,91114.0,0.001]
[1764948424252,0.30864282,91115.0,91114.0,0.001]
[1764948424518,0.21954391,91098.0,91094.0,0.01097767]
[1764948424692,0.01106451,91098.0,91094.0,0.01097767]
[1764948424891,0.01106451,91098.0,91095.0,0.21954909]
[1764948425129,0.23060973,91098.0,91095.0,0.21954909]
[1764948425333,0.23060973,91098.0,91093.0,0.01752]
[1764948425334,0.21955226,91095.0,91093.0,0.01752]
[1764948425534,0.21955226,91095.0,91077.0,0.01097972]
[1764948425535,0.01097863,91086.0,91077.0,0.01097972]
[1764948425711,0.03731,91084.0,91072.0,0.01663]
[1764948425954,0.03731,91084.0,91079.0,0.01752]
[1764948426152,0.03731,91084.0,91081.0,0.21958373]
[1764948426301,0.05183,91089.0,91086.0,0.01097863]
[1764948426503,0.01097839,91088.0,91083.0,0.0002354]
[1764948426737,0.03731,91084.0,91083.0,0.0002354]
[1764948427191,0.08914,91084.0,91083.0,0.0002354]
[1764948427407,0.01097863,91086.0,91083.0,0.0002354]
[1764948427629,0.25688753,91084.0,91083.0,0.0002354]
[1764948428443,0.25688753,91084.0,91083.0,0.0012354]
[1764948430335,0.03731,91084.0,91083.0,0.22081534]
[1764948430510,0.0269,91085.0,91083.0,0.0012354]
[1764948430902,0.44003212,91110.0,91083.0,0.0012354]
[1764948430903,0.01097851,91087.0,91083.0,0.01221439]
[1764948431112,0.23055394,91086.0,91083.0,0.0012354]
[1764948431336,0.21957683,91085.0,91083.0,0.0012354]
[1764948431511,0.21957683,91085.0,91083.0,0.0002354]
[1764948431730,0.21957708,91085.0,91083.0,0.0012354]
[1764948432163,0.21957708,91085.0,91083.0,0.0032354]
[1764948432364,0.23155394,91086.0,91083.0,0.0032354]
[1764948432540,0.2195758,91085.0,91083.0,0.0032354]
[1764948433542,0.11962676,91084.0,91083.0,0.0032354]
[1764948433745,0.11962676,91084.0,91040.0,0.0004]
[1764948433746,0.21965711,91051.0,91050.0,0.0004]
[1764948433951,0.28547998,91051.0,91050.0,0.0004]
[1764948434152,0.33730998,91051.0,91050.0,0.0004]
[1764948434895,0.33730998,91051.0,91050.0,0.00079833]
[1764948435097,0.42360713,91051.0,91050.0,0.00079833]
[1764948435296,0.42360713,91051.0,91040.0,0.0004]
[1764948435297,0.60520423,91041.0,91040.0,0.0004]
[1764948435526,0.64251423,91041.0,91040.0,0.00051939]
[1764948435743,0.64251423,91041.0,91011.0,0.01098768]
[1764948435744,0.21972951,91021.0,91011.0,0.01098768]
[1764948435954,0.28393951,91021.0,91020.0,0.00051944]
[1764948436176,0.11604,91021.0,91020.0,0.00051944]
[1764948436873,0.11604,91021.0,91020.0,0.22025136]
[1764948437051,0.06421,91021.0,91020.0,0.22025136]
[1764948437256,0.11604,91021.0,91020.0,0.00051944]
[1764948437473,0.05183,91034.0,91029.0,0.01098551]
[1764948437615,0.05183,91034.0,91028.0,0.01098563]
[1764948437821,0.0109843,91039.0,91036.0,0.21969231]
[1764948438017,0.0109843,91039.0,91034.0,0.0109849]
[1764948438219,0.06281382,91043.0,91036.0,0.01098466]
[1764948438453,0.23066546,91041.0,91036.0,0.01098466]
[1764948438613,0.01098357,91045.0,91037.0,0.01098454]
[1764948438816,0.05183,91050.0,91046.0,0.01098345]
[1764948439056,0.02851287,91051.0,91048.0,0.23064552]
[1764948439274,0.01098164,91061.0,91057.0,0.01098213]
[1764948439450,0.07873,91062.0,91059.0,0.01098189]
[1764948439660,0.0269,91062.0,91059.0,0.01098189]
[1764948439847,0.0269,91062.0,91060.0,0.21963398]
[1764948440365,0.02698732,91062.0,91060.0,0.21963398]
[1764948440563,0.02698732,91062.0,91059.0,0.23061713]
[1764948440741,0.01098177,91060.0,91057.0,0.01098213]
[1764948440946,0.11279884,91062.0,91050.0,0.01756]
[1764948440947,0.01098261,91053.0,91050.0,0.01756]
[1764948441131,0.21965615,91052.0,91050.0,0.01756]
[1764948441332,0.03731,91051.0,91050.0,0.01756]
[1764948441552,0.01098442,91038.0,91031.0,0.01098526]
[1764948441854,0.0269,91026.0,91025.0,0.01098599]
[1764948442387,0.0109849,91034.0,91031.0,0.23068928]
[1764948442581,0.219701,91033.0,91031.0,0.01098526]
[1764948442786,0.0109849,91034.0,91031.0,0.23069038]
[1764948442987,0.0109849,91034.0,91031.0,0.00011944]
[1764948443192,0.03731,91032.0,91031.0,0.00011944]
[1764948443491,0.00161287,91032.0,91031.0,0.00011944]
[1764948443730,0.23067527,91038.0,91033.0,0.23068496]
[1764948443731,0.21969416,91036.0,91033.0,0.23068496]
[1764948443945,0.05183,91042.0,91031.0,0.00011944]
[1764948443946,0.01098333,91047.0,91043.0,0.01098382]
[1764948444114,0.03788321,91048.0,91046.0,0.21966728]
[1764948444115,0.0269,91048.0,91046.0,0.21966728]
[1764948444515,0.23063014,91055.0,91052.0,0.01098273]
[1764948444516,0.01098237,91055.0,91052.0,0.01098273]
[1764948444715,0.01098237,91055.0,91052.0,0.21965386]
[1764948445020,0.01098237,91055.0,91054.0,0.00085365]
[1764948445218,0.23063051,91055.0,91054.0,0.00085365]
[1764948445624,0.31750051,91055.0,91054.0,0.00085365]
[1764948446606,0.31911338,91055.0,91054.0,0.00085365]
[1764948446810,0.3838553,91055.0,91054.0,0.00085365]
[1764948447016,0.45137829,91055.0,91054.0,0.00085365]
[1764948447218,0.77437829,91055.0,91054.0,0.00085365]
[1764948447417,0.76937829,91055.0,91054.0,0.00085365]
[1764948447851,0.73263637,91055.0,91054.0,0.00185365]
[1764948448047,0.70463637,91055.0,91054.0,0.00085365]
[1764948448265,0.72663637,91055.0,91054.0,0.00085365]
[1764948448404,0.75063637,91055.0,91054.0,0.00085365]
[1764948448616,0.75463637,91055.0,91054.0,0.00085365]
[1764948448828,0.86434143,91055.0,91054.0,0.00085365]
[1764948449250,0.88080387,91055.0,91054.0,0.00085365]
[1764948449667,0.88080387,91055.0,91031.0,0.00011944]
[1764948449668,0.21970296,91032.0,91031.0,0.00011944]
[1764948449890,0.25399296,91032.0,91031.0,0.00011944]
[1764948450093,0.30657296,91032.0,91031.0,0.00011944]
[1764948450245,0.03429,91032.0,91031.0,0.00011944]
[1764948450612,0.06252299,91054.0,91035.0,0.01098478]
[1764948450803,0.01098357,91045.0,91040.0,0.01098418]
[1764948450989,0.21968878,91038.0,91034.0,0.21969698]
[1764948451340,0.03429,91032.0,91031.0,0.00011944]
[1764948451473,0.25799296,91032.0,91031.0,0.00111944]
[1764948451659,0.30657296,91032.0,91031.0,0.00011944]
[1764948452203,0.0109849,91034.0,91031.0,0.00011944]
[1764948452407,0.21969101,91037.0,91034.0,0.0109849]
[1764948452602,0.01098406,91041.0,91034.0,0.21969723]
[1764948452805,0.2196933,91036.0,91033.0,0.01098502]
[1764948453006,0.2306759,91037.0,91034.0,0.21969766]
[1764948453205,0.2306759,91037.0,91031.0,0.0111047]
[1764948453206,0.01098454,91037.0,91032.0,0.01098514]
[1764948453411,0.0109843,91039.0,91036.0,0.01098466]
[1764948453753,0.28325093,91039.0,91036.0,0.21969179]
[1764948453960,0.005,91036.0,91033.0,0.01198502]
[1764948454158,0.005,91036.0,91035.0,0.21969572]
[1764948454359,0.01098357,91045.0,91037.0,0.23067359]
[1764948454360,0.21968155,91041.0,91037.0,0.23067359]
[1764948454519,0.02538,91043.0,91040.0,0.01098418]
[1764948454861,0.23065066,91047.0,91044.0,0.0109837]
[1764948455005,0.02538,91049.0,91044.0,0.23065713]
[1764948455365,0.21964418,91057.0,91041.0,0.01098406]
[1764948455366,0.23063278,91054.0,91051.0,0.21965671]
[1764948455488,0.01098213,91057.0,91052.0,0.23063501]
[1764948455690,0.21964528,91056.0,91052.0,0.01098273]
[1764948455899,0.323,91066.0,91031.0,0.01658188]
[1764948455900,0.01098285,91051.0,91046.0,0.02190399]
[1764948456108,0.01098418,91040.0,91036.0,0.01098466]
[1764948456307,0.01098418,91040.0,91034.0,0.0285449]
[1764948456308,0.23064798,91048.0,91043.0,0.01098382]
[1764948456552,0.01098345,91046.0,91043.0,0.01098382]
[1764948456751,0.23034403,91046.0,91041.0,0.21967957]
[1764948456979,0.23034403,91046.0,91041.0,0.2306633]
[1764948456980,0.23065803,91044.0,91041.0,0.2306633]
[1764948457185,0.01098285,91051.0,91047.0,0.01098333]
[1764948457397,0.01098297,91050.0,91047.0,0.01098333]
[1764948457612,0.004,91048.0,91046.0,0.24157156]
[1764948457955,0.01098297,91050.0,91046.0,0.24157156]
[1764948458161,0.01098309,91049.0,91046.0,0.25255501]
[1764948458453,0.01098273,91052.0,91046.0,0.02190399]
[1764948458625,0.01098273,91052.0,91044.0,0.23065546]
[1764948458626,0.01098261,91053.0,91047.0,0.23065008]
[1764948458863,0.01098285,91051.0,91046.0,0.01098345]
[1764948459090,0.01098261,91053.0,91047.0,0.01098333]
[1764948459091,0.01098273,91052.0,91047.0,0.01098333]
[1764948459342,0.01098273,91052.0,91049.0,0.21966165]
[1764948459576,0.03429,91048.0,91047.0,0.01198333]
[1764948459794,0.03429,91048.0,91047.0,0.23164994]
[1764948460173,0.03429,91048.0,91047.0,0.23064994]
[1764948460376,0.01098213,91057.0,91052.0,0.01098273]
[1764948460589,0.01098249,91054.0,91049.0,0.01098309]
[1764948460802,0.23063525,91053.0,91050.0,0.01098297]
[1764948461021,0.283215,91053.0,91049.0,0.01098309]
[1764948461235,0.26493491,91050.0,91047.0,0.001]
[1764948461440,0.26493491,91050.0,91046.0,0.00023554]
[1764948461441,0.25395676,91047.0,91046.0,0.00023554]
[1764948461679,0.25556963,91047.0,91046.0,0.00023554]
[1764948461909,0.63114963,91047.0,91046.0,0.00023554]
[1764948463492,0.63514963,91047.0,91046.0,0.00123554]
[1764948463862,0.63114963,91047.0,91046.0,0.00023554]
[1764948464064,0.30814963,91047.0,91046.0,0.00023554]
[1764948464270,0.31314963,91047.0,91046.0,0.00123554]
[1764948464661,0.26056963,91047.0,91046.0,0.00123554]
[1764948465167,0.31314963,91047.0,91046.0,0.00123554]
[1764948467965,0.26314963,91047.0,91046.0,0.00123554]
[1764948470423,0.04090287,91047.0,91046.0,0.00123554]
[1764948470625,0.26056963,91047.0,91046.0,0.00123554]
[1764948470757,0.31149963,91047.0,91046.0,0.00123554]
[1764948471366,0.26056963,91047.0,91046.0,0.00123554]
[1764948472124,0.00661287,91047.0,91046.0,0.00123554]
[1764948472357,0.005,91047.0,91046.0,0.22090471]
[1764948472917,0.005,91047.0,91046.0,0.2428087]
[1764948473274,0.005,91047.0,91046.0,0.22090471]
[1764948473619,0.005,91047.0,91046.0,0.00123554]
[1764948473824,0.22466676,91047.0,91046.0,0.00123554]
[1764948474021,0.30938676,91047.0,91046.0,0.00123554]
[1764948475234,0.25845676,91047.0,91046.0,0.00123554]
[1764948475851,0.005,91047.0,91046.0,0.00123554]
[1764948476266,0.005,91047.0,91046.0,0.22090471]
[1764948476471,0.005,91047.0,91046.0,0.2702187]
[1764948476874,0.005,91047.0,91046.0,0.2976287]
[1764948477539,0.01098092,91067.0,91064.0,0.23060489]
[1764948477699,0.21961865,91067.0,91065.0,0.01098116]
[1764948477895,0.0269,91069.0,91068.0,0.21961611]
[1764948478147,0.01098008,91074.0,91072.0,0.21960633]
[1764948478301,0.01098032,91072.0,91069.0,0.23059399]
[1764948478497,0.23058682,91072.0,91069.0,0.01098068]
[1764948478700,0.02493,91071.0,91069.0,0.23059419]
[1764948478970,0.00039801,91072.0,91071.0,0.21960887]
[1764948479313,0.00039801,91072.0,91071.0,0.24151286]
[1764948480343,0.00439801,91072.0,91071.0,0.002]
[1764948480553,0.03826801,91072.0,91071.0,0.003]
[1764948480768,0.30785734,91072.0,91071.0,0.003]
[1764948480975,0.69338033,91072.0,91071.0,0.003]
[1764948481124,0.01098285,91051.0,91046.0,0.00023554]
[1764948481317,0.25353676,91047.0,91046.0,0.00023554]
[1764948481569,0.32844963,91047.0,91046.0,0.00023554]
[1764948481911,0.21972951,91021.0,91020.0,0.0004]
[1764948482181,0.01098599,91025.0,91020.0,0.01138659]
[1764948482583,0.03387,91021.0,91020.0,0.22013192]
[1764948482718,0.23070434,91026.0,91021.0,0.01098647]
[1764948482917,0.04837,91033.0,91029.0,0.01098551]
[1764948482918,0.25561645,91033.0,91029.0,0.01098551]
[1764948483232,0.21970621,91031.0,91029.0,0.00011944]
[1764948483429,0.02493,91033.0,91031.0,0.21970357]
[1764948483628,0.23068047,91037.0,91032.0,0.01098514]
[1764948484000,0.01098478,91035.0,91032.0,0.01098514]
[1764948484269,0.21968202,91041.0,91029.0,0.01110495]
[1764948484270,0.0109837,91044.0,91036.0,0.02190399]
[1764948484504,0.23066598,91041.0,91037.0,0.01098454]
[1764948484714,0.23066598,91041.0,91038.0,0.23067235]
[1764948484889,0.23066598,91041.0,91037.0,0.01098454]
[1764948484890,0.01098406,91041.0,91037.0,0.01098454]
[1764948485120,0.0109837,91044.0,91041.0,0.01098406]
[1764948485121,0.21967449,91044.0,91041.0,0.01098406]
[1764948485236,0.01098478,91035.0,91031.0,0.21970462]
[1764948485440,0.02493,91031.0,91029.0,0.23738856]
[1764948485658,0.21968143,91041.0,91033.0,0.01098502]
[1764948485862,0.01098418,91040.0,91034.0,0.0109849]
[1764948486063,0.23067099,91039.0,91036.0,0.01098466]
[1764948486281,0.0109843,91039.0,91036.0,0.01098466]
[1764948486456,0.0109843,91039.0,91031.0,0.21970376]
[1764948486457,0.21965359,91053.0,91041.0,0.01098406]
[1764948486637,0.03591225,91056.0,91044.0,0.03288769]
[1764948486837,0.01098261,91053.0,91049.0,0.23064467]
[1764948487062,0.02493,91056.0,91053.0,0.23063428]
[1764948487283,0.02493,91065.0,91062.0,0.23061058]
[1764948487486,0.02493,91071.0,91069.0,0.21961281]
[1764948487705,0.05934935,91080.0,91069.0,0.23059396]
[1764948487706,0.0109802,91073.0,91069.0,0.23059396]
[1764948487946,0.230588,91072.0,91068.0,0.0109808]
[1764948488150,0.23058836,91072.0,91067.0,0.23059797]
[1764948488498,0.00039801,91072.0,91069.0,0.01098068]
[1764948488874,0.00039801,91072.0,91070.0,0.24151486]
[1764948489078,0.00039801,91072.0,91071.0,0.05255399]
[1764948489278,0.00039801,91072.0,91071.0,0.03065]
[1764948489688,0.00039801,91072.0,91071.0,0.07011399]
[1764948490050,0.00239801,91072.0,91071.0,0.07011399]
[1764948490451,0.00039801,91072.0,91071.0,0.01756]
[1764948490657,0.00239801,91072.0,91071.0,0.01756]
[1764948490972,0.00239801,91072.0,91071.0,0.01856]
[1764948491185,0.00239801,91072.0,91071.0,0.04921]
[1764948491533,0.00239801,91072.0,91071.0,0.10176399]
[1764948492065,0.00239801,91072.0,91071.0,0.10076399]
[1764948492896,0.00239801,91072.0,91071.0,0.31799399]
[1764948493282,0.00239801,91072.0,91071.0,0.31899399]
[1764948493609,0.00239801,91072.0,91071.0,0.64199399]
[1764948493810,0.00239801,91072.0,91071.0,0.61532199]
[1764948494199,0.00039801,91072.0,91071.0,0.61632199]
[1764948494593,0.21951826,91109.0,91071.0,0.61632199]
[1764948494594,0.323,91121.0,91071.0,0.61632199]
[1764948494819,0.02493,91133.0,91071.0,0.61632199]
[1764948494820,0.01097477,91118.0,91096.0,0.59484259]
[1764948495048,0.02493,91115.0,91096.0,0.61240259]
[1764948495266,0.02493,91115.0,91096.0,0.6208886]
[1764948495448,0.01097345,91129.0,91096.0,0.6208886]
[1764948495449,0.01097321,91131.0,91096.0,0.64279259]
[1764948495670,0.01097285,91134.0,91096.0,0.64279259]
[1764948495878,0.01097273,91135.0,91096.0,0.83665759]
[1764948496001,0.21947559,91127.0,91096.0,0.83665759]
[1764948496218,0.02493,91115.0,91096.0,0.78801959]
[1764948496443,0.02493,91115.0,91096.0,0.64279259]
[1764948496756,0.02493,91115.0,91096.0,0.64379259]
[1764948497191,0.00396204,91097.0,91096.0,0.82153359]
[1764948497406,0.00196204,91097.0,91096.0,0.75963759]
[1764948498136,0.00396204,91097.0,91096.0,0.76263759]
[1764948498336,0.00396204,91097.0,91096.0,0.61540259]
[1764948498538,0.00396204,91097.0,91096.0,0.85753759]
[1764948498738,0.00396204,91097.0,91096.0,0.64579259]
[1764948499142,0.00396204,91097.0,91096.0,0.77941359]
[1764948499380,0.00396204,91097.0,91096.0,0.78141359]
[1764948499604,0.00396204,91097.0,91096.0,0.78651659]
[1764948500042,0.00396204,91097.0,91096.0,0.64779259]
[1764948500420,0.00396204,91097.0,91096.0,0.61740259]
[1764948500793,0.00396204,91097.0,91096.0,0.64779259]
[1764948501237,0.0002,91140.0,91139.0,0.21944502]
[1764948501422,0.0002,91140.0,91137.0,0.01097249]
[1764948501423,0.0002,91140.0,91138.0,0.23647743]
[1764948502285,0.0002,91140.0,91139.0,0.03039]
[1764948502496,0.00031946,91140.0,91139.0,0.05229399]
[1764948502903,0.00031946,91140.0,91139.0,0.02190399]
[1764948503311,0.00031946,91140.0,91138.0,0.23647743]
[1764948503511,0.00031946,91140.0,91138.0,0.01703]
[1764948503719,0.00031946,91140.0,91138.0,0.23647644]
[1764948503933,0.00631946,91140.0,91139.0,0.001]